bitfinex/quotes_BTCUSD_20241119
["timestamp","ask_amount","ask_price","bid_price","bid_amount"]
[1732054464051,0.13206255,92347.0,92343.0,0.043316]
[1732054464259,0.13206255,92347.0,92344.0,0.043315]
[1732054464469,0.13206255,92347.0,92324.0,0.1]
[1732054464470,0.13206255,92347.0,92325.0,0.1]
[1732054464701,0.13206255,92347.0,92326.0,0.043324]
[1732054464922,0.13206255,92347.0,92343.0,0.043316]
[1732054465140,0.13206255,92347.0,92344.0,0.043316]
[1732054465344,0.13206255,92347.0,92345.0,0.043315]
[1732054465575,0.108289,92346.0,92339.0,0.043318]
[1732054465791,0.023,92344.0,92341.0,0.043317]
[1732054466033,0.023,92342.0,92341.0,0.043317]
[1732054466236,0.13206255,92342.0,92341.0,0.043317]
[1732054466582,0.023,92340.0,92336.0,0.043319]
[1732054466781,0.13206255,92340.0,92337.0,0.043319]
[1732054466989,0.13206255,92340.0,92339.0,0.043318]
[1732054469270,0.26036581,92348.0,92337.0,0.043319]
[1732054469271,0.0008541,92348.0,92347.0,0.043314]
[1732054472745,0.0008541,92348.0,92344.0,0.043316]
[1732054472964,0.0238541,92348.0,92344.0,0.043316]
[1732054473185,0.0008541,92348.0,92346.0,0.043315]
[1732054473627,0.0008541,92348.0,92341.0,0.043317]
[1732054473859,0.0008541,92348.0,92338.0,0.0017082]
[1732054473860,0.0008541,92348.0,92347.0,0.043314]
[1732054474089,0.0008541,92348.0,92339.0,0.043318]
[1732054474308,0.0238541,92348.0,92344.0,0.043315]
[1732054474535,0.0008541,92348.0,92345.0,0.043315]
[1732054474745,0.0008541,92348.0,92346.0,0.043315]
[1732054474930,0.0008541,92348.0,92338.0,0.0017082]
[1732054475203,0.023,92345.0,92339.0,0.043318]
[1732054475416,0.023,92345.0,92338.0,0.0017082]
[1732054475637,0.023,92347.0,92340.0,0.043318]
[1732054475851,0.023,92346.0,92340.0,0.043318]
[1732054476068,0.131288,92346.0,92341.0,0.043317]
[1732054476547,0.131288,92346.0,92342.0,0.043317]
[1732054476763,0.131296,92339.0,92338.0,0.0017082]
[1732054477232,0.24035855,92339.0,92338.0,0.0017082]
[1732054477926,0.13206255,92339.0,92338.0,0.0017082]
[1732054478149,0.24035855,92339.0,92338.0,0.0017082]
[1732054479519,0.28402649,92339.0,92338.0,0.0017082]
[1732054481279,0.17496394,92339.0,92338.0,0.0017082]
[1732054481543,0.06666794,92339.0,92338.0,0.0017082]
[1732054481982,0.17496394,92339.0,92338.0,0.0017082]
[1732054482453,0.0008541,92348.0,92338.0,0.0017082]
[1732054482707,0.0008541,92348.0,92347.0,0.043314]
[1732054482934,0.0008541,92348.0,92346.0,0.043315]
[1732054483149,0.0008541,92348.0,92344.0,0.043316]
[1732054483369,0.0008541,92348.0,92347.0,0.043314]
[1732054485685,0.0008541,92348.0,92343.0,0.043316]
[1732054485916,0.0008541,92348.0,92347.0,0.043314]
[1732054488276,0.131296,92339.0,92338.0,0.0017082]
[1732054490032,0.239579,92345.0,92338.0,0.0017082]
[1732054490324,0.10906255,92344.0,92338.0,0.0017082]
[1732054490556,0.131296,92339.0,92338.0,0.0017082]
[1732054491410,0.023,92339.0,92338.0,0.0017082]
[1732054491859,0.131296,92339.0,92338.0,0.0017082]
[1732054492944,0.108296,92339.0,92338.0,0.0017082]
[1732054493826,0.21659,92340.0,92322.0,0.09662991]
[1732054494063,0.21659,92340.0,92330.0,0.043322]
[1732054494064,0.1083,92336.0,92330.0,0.043322]
[1732054494305,0.216602,92335.0,92322.0,0.09662991]
[1732054494521,0.216602,92335.0,92318.0,0.1681806]
[1732054494522,0.10906255,92336.0,92326.0,0.043324]
[1732054494742,0.216604,92334.0,92321.0,0.043327]
[1732054494960,0.216604,92334.0,92323.0,0.043325]
[1732054495415,0.108308,92329.0,92324.0,0.043325]
[1732054496344,0.216609,92332.0,92321.0,0.043326]
[1732054496569,0.216609,92332.0,92314.0,0.04333]
[1732054496570,0.10906255,92336.0,92313.0,0.1]
[1732054496768,0.10906255,92335.0,92325.0,0.043324]
[1732054497045,0.216608,92333.0,92327.0,0.043324]
[1732054497258,0.216608,92333.0,92311.0,0.19487489]
[1732054497259,0.108304,92333.0,92311.0,0.19487489]
[1732054497474,0.108304,92332.0,92327.0,0.043323]
[1732054498960,0.108306,92331.0,92327.0,0.043323]
[1732054500012,0.108306,92331.0,92327.0,0.086647]
[1732054500436,0.10906255,92335.0,92329.0,0.043323]
[1732054500670,0.108303,92333.0,92328.0,0.043323]
[1732054500880,0.108306,92331.0,92326.0,0.043324]
[1732054501091,0.108306,92331.0,92326.0,0.086648]
[1732054501299,0.108306,92331.0,92327.0,0.043324]
[1732054501506,0.108304,92333.0,92326.0,0.043324]
[1732054501778,0.108304,92333.0,92328.0,0.043323]
[1732054501987,0.108306,92331.0,92326.0,0.043324]
[1732054502205,0.108304,92333.0,92328.0,0.043323]
[1732054502419,0.108305,92332.0,92326.0,0.043324]
[1732054502656,0.108305,92332.0,92328.0,0.043323]
[1732054502876,0.10906255,92335.0,92325.0,0.043324]
[1732054503114,0.216607,92333.0,92325.0,0.086648]
[1732054503352,0.108305,92332.0,92325.0,0.043324]
[1732054503573,0.108306,92331.0,92326.0,0.043324]
[1732054503801,0.108306,92331.0,92327.0,0.043324]
[1732054504017,0.324911,92333.0,92327.0,0.043324]
[1732054504234,0.324911,92333.0,92325.0,0.043324]
[1732054504235,0.216607,92333.0,92325.0,0.043324]
[1732054504464,0.10906255,92335.0,92324.0,0.09672749]
[1732054504696,0.10906255,92335.0,92324.0,0.043325]
[1732054504697,0.108308,92329.0,92324.0,0.043325]
[1732054504909,0.108308,92329.0,92314.0,0.19334534]
[1732054504910,0.108317,92321.0,92320.0,0.09672749]
[1732054505123,0.108312,92326.0,92321.0,0.043327]
[1732054505568,0.108312,92326.0,92320.0,0.043327]
[1732054505800,0.10906255,92333.0,92323.0,0.043325]
[1732054506009,0.216609,92332.0,92325.0,0.043325]
[1732054506229,0.10906255,92332.0,92325.0,0.043325]
[1732054506452,0.108306,92331.0,92326.0,0.043324]
[1732054506660,0.10906255,92332.0,92328.0,0.043323]
[1732054506909,0.10906255,92332.0,92326.0,0.043324]
[1732054507131,0.21736655,92332.0,92328.0,0.043323]
[1732054507359,0.10906255,92332.0,92326.0,0.043324]
[1732054507589,0.108307,92331.0,92326.0,0.043324]
[1732054507804,0.10906255,92332.0,92326.0,0.043324]
[1732054508013,0.216603,92335.0,92326.0,0.043324]
[1732054508447,0.216607,92333.0,92326.0,0.043324]
[1732054508653,0.108306,92331.0,92326.0,0.043324]
[1732054508857,0.108306,92331.0,92323.0,0.0017082]
[1732054508858,0.108306,92331.0,92325.0,0.043324]
[1732054509083,0.216607,92333.0,92325.0,0.043324]
[1732054509285,0.108307,92330.0,92326.0,0.043324]
[1732054509482,0.108306,92331.0,92326.0,0.043324]
[1732054510350,0.108306,92331.0,92316.0,0.03171621]
[1732054510575,0.5483,92338.0,92316.0,0.03171621]
[1732054510576,0.108308,92329.0,92316.0,0.03171621]
[1732054510781,0.108308,92329.0,92324.0,0.043325]
[1732054511214,0.216611,92332.0,92326.0,0.043324]
[1732054511447,0.108306,92331.0,92326.0,0.043324]
[1732054511890,0.108308,92329.0,92324.0,0.043325]
[1732054512141,0.10906255,92336.0,92310.0,0.22251873]
[1732054512348,0.67459829,92338.0,92318.0,0.043328]
[1732054512349,0.023,92333.0,92318.0,0.043328]
[1732054512582,0.10906255,92332.0,92318.0,0.043328]
[1732054512790,0.10906255,92332.0,92310.0,0.0773]
[1732054513058,0.10906255,92332.0,92319.0,0.043327]
[1732054513059,0.108315,92324.0,92319.0,0.043327]
[1732054513292,0.10906255,92332.0,92321.0,0.043327]
[1732054513462,0.108311,92326.0,92321.0,0.043327]
[1732054513720,0.216619,92328.0,92315.0,0.043329]
[1732054513960,0.216619,92328.0,92299.0,0.01]
[1732054513961,0.01,92320.0,92303.0,0.14521873]
[1732054514168,0.108343,92299.0,92298.0,0.0017086]
[1732054514414,0.108342,92300.0,92298.0,0.0017086]
[1732054514610,0.12629829,92304.0,92298.0,0.0017086]
[1732054514824,0.10834,92302.0,92298.0,0.0017086]
[1732054515039,0.108341,92301.0,92298.0,0.0017086]
[1732054515261,0.108343,92299.0,92298.0,0.0017086]
[1732054515950,0.108342,92300.0,92298.0,0.0017086]
[1732054516165,0.108343,92299.0,92298.0,0.0017086]
[1732054519169,0.109343,92299.0,92298.0,0.0017086]
[1732054520899,0.108343,92299.0,92298.0,0.0017086]
[1732054522892,0.15140555,92299.0,92298.0,0.0017086]
[1732054523129,0.25140555,92299.0,92298.0,0.0017086]
[1732054523372,0.79970555,92299.0,92298.0,0.0017086]
[1732054523612,0.80070555,92299.0,92298.0,0.0017086]
[1732054523877,0.80070555,92299.0,92276.0,0.043347]
[1732054523878,0.01,92258.0,92251.0,0.0004]
[1732054524103,0.108398,92252.0,92251.0,0.0004]
[1732054524320,0.21746055,92252.0,92251.0,0.0004]
[1732054525516,0.108398,92252.0,92251.0,0.0004]
[1732054525746,0.216793,92254.0,92251.0,0.0004]
[1732054525965,0.108398,92252.0,92251.0,0.0004]
[1732054526887,0.10906255,92253.0,92251.0,0.0004]
[1732054527101,0.5483,92257.0,92256.0,0.043357]
[1732054529725,0.108398,92252.0,92251.0,0.0004]
[1732054529948,0.24046055,92252.0,92251.0,0.0004]
[1732054532884,0.78876055,92252.0,92251.0,0.0004]
[1732054535324,0.84227785,92252.0,92251.0,0.0004]
[1732054535534,0.84327785,92252.0,92251.0,0.0004]
[1732054535944,0.94427785,92252.0,92251.0,0.0004]
[1732054537807,0.83587985,92252.0,92251.0,0.0004]
[1732054538044,0.95427785,92252.0,92251.0,0.0004]
[1732054538476,1.00337785,92252.0,92251.0,0.0004]
[1732054538685,1.07907785,92252.0,92251.0,0.0004]
[1732054538891,1.07707785,92252.0,92251.0,0.0004]
[1732054539789,1.07907785,92252.0,92251.0,0.0004]
[1732054540444,1.06807785,92252.0,92251.0,0.0004]
[1732054540703,0.80927785,92252.0,92251.0,0.0004]
[1732054542470,0.80927785,92252.0,92251.0,0.0021094]
[1732054542904,0.5483,92252.0,92251.0,0.0454684]
[1732054543148,0.04309574,92259.0,92251.0,0.0021094]
[1732054543354,0.01,92276.0,92251.0,0.0021094]
[1732054543355,0.10838,92268.0,92251.0,0.0021094]
[1732054543576,0.21744255,92268.0,92263.0,0.043354]
[1732054543785,0.10906255,92268.0,92263.0,0.043354]
[1732054544013,0.5483,92270.0,92252.0,0.054199]
[1732054544249,0.0008547,92271.0,92269.0,0.043351]
[1732054544475,0.0008547,92271.0,92270.0,0.125851]
[1732054546989,0.0008547,92271.0,92270.0,0.175351]
[1732054549683,0.0008547,92271.0,92251.0,0.0021094]
[1732054549684,0.01,92253.0,92251.0,0.0021094]
[1732054549936,0.78876055,92252.0,92251.0,0.0021094]
[1732054550406,0.78976055,92252.0,92251.0,0.0021094]
[1732054552525,0.78876055,92252.0,92251.0,0.0021094]
[1732054553018,0.70076055,92252.0,92251.0,0.0021094]
[1732054553243,0.69976055,92252.0,92251.0,0.0021094]
[1732054554088,0.74314211,92252.0,92251.0,0.0021094]
[1732054555699,0.74414211,92252.0,92251.0,0.0021094]
[1732054558619,0.87714211,92252.0,92251.0,0.0021094]
[1732054558837,0.92454211,92252.0,92251.0,0.0021094]
[1732054559078,1.01614211,92252.0,92251.0,0.0021094]
[1732054559585,1.01714211,92252.0,92251.0,0.0021094]
[1732054560013,1.01714211,92252.0,92251.0,4e-07]
[1732054560230,1.01714211,92252.0,92233.0,0.0017084]
[1732054560231,0.002,92243.0,92233.0,0.0017084]
[1732054560438,0.44102971,92238.0,92237.0,0.00170779]
[1732054560711,0.55009226,92238.0,92237.0,0.00170779]
[1732054561822,0.012,92232.0,92231.0,0.0004]
[1732054562053,1.11399926,92232.0,92231.0,0.0004]
[1732054562290,1.16139926,92232.0,92231.0,0.0004]
[1732054562504,0.118445,92212.0,92189.0,0.0776]
[1732054562707,0.118445,92212.0,92193.0,0.043387]
[1732054562708,0.70980755,92212.0,92193.0,0.043387]
[1732054562920,0.70980755,92212.0,92190.0,0.043388]
[1732054563417,0.74212125,92212.0,92189.0,0.0776]
[1732054563854,0.84212125,92212.0,92177.0,0.0484]
[1732054564073,0.84212125,92212.0,92186.0,0.04339]
[1732054564074,0.84312125,92212.0,92186.0,0.04339]
[1732054564506,0.84312125,92212.0,92187.0,0.043389]
[1732054564717,0.84312125,92212.0,92189.0,0.043389]
[1732054564957,0.84312125,92212.0,92180.0,0.0776]
[1732054564958,0.79980755,92212.0,92211.0,0.0021082]
[1732054565169,0.69136255,92212.0,92211.0,0.0021082]
[1732054565380,0.79980755,92212.0,92211.0,0.0021082]
[1732054565590,0.84334206,92212.0,92211.0,0.0021082]
[1732054565802,0.36104206,92212.0,92211.0,0.0021082]
[1732054566254,0.25259706,92212.0,92211.0,0.0021082]
[1732054566491,0.4823,92218.0,92211.0,0.0021082]
[1732054566720,0.10906255,92217.0,92211.0,0.0021082]
[1732054566945,0.10906255,92217.0,92212.0,0.043378]
[1732054567236,0.10906255,92217.0,92211.0,0.0021082]
[1732054567692,0.10906255,92217.0,92211.0,0.0454862]
[1732054567929,0.52709682,92218.0,92214.0,0.043377]
[1732054568144,0.52709682,92218.0,92217.0,0.043375]
[1732054568415,0.52709682,92218.0,92211.0,0.0021082]
[1732054568625,0.52709682,92218.0,92215.0,0.043376]
[1732054568885,0.04479682,92218.0,92215.0,0.043376]
[1732054569123,0.04479682,92218.0,92211.0,0.0021082]
[1732054569124,0.04479682,92218.0,92211.0,0.0454862]
[1732054569335,0.108435,92221.0,92211.0,0.0454862]
[1732054569543,0.108435,92221.0,92213.0,0.043377]
[1732054569778,0.108435,92221.0,92214.0,0.043377]
[1732054570029,0.325287,92226.0,92215.0,0.043376]
[1732054570238,0.10906255,92225.0,92215.0,0.043376]
[1732054570472,0.108433,92223.0,92215.0,0.043376]
[1732054570911,0.108434,92222.0,92215.0,0.043376]
[1732054572237,0.216867,92223.0,92214.0,0.043377]
[1732054572428,0.10906255,92224.0,92211.0,0.0021082]
[1732054572695,0.108443,92215.0,92211.0,0.0021082]
[1732054572919,0.001,92220.0,92211.0,0.0021082]
[1732054573148,0.10906255,92220.0,92211.0,0.0021082]
[1732054573379,0.108445,92212.0,92211.0,0.0021082]
[1732054580647,0.27166901,92212.0,92211.0,0.0021082]
[1732054580855,0.75396901,92212.0,92211.0,0.0021082]
[1732054582875,0.66496901,92212.0,92211.0,0.0021082]
[1732054583091,0.75396901,92212.0,92211.0,0.0021082]
[1732054583756,0.75396901,92212.0,92211.0,0.00063706]
[1732054585033,0.63490646,92212.0,92211.0,0.00063706]
[1732054586387,0.4823,92212.0,92211.0,0.04401506]
[1732054587031,0.108436,92220.0,92215.0,0.043376]
[1732054587278,0.108436,92220.0,92216.0,0.043376]
[1732054587509,0.11906255,92229.0,92217.0,0.043375]
[1732054587510,0.108435,92221.0,92217.0,0.043375]
[1732054587723,0.10906255,92229.0,92213.0,0.043377]
[1732054587724,0.1,92228.0,92213.0,0.043377]
[1732054587941,0.0008545,92217.0,92216.0,0.043376]
[1732054588173,0.0008545,92217.0,92216.0,0.28123855]
[1732054597940,0.32586455,92250.0,92216.0,0.23786255]
[1732054598159,0.87416655,92249.0,92218.0,0.043375]
[1732054598367,0.108409,92244.0,92238.0,0.043365]
[1732054598587,0.108409,92244.0,92239.0,0.043365]
[1732054598812,0.10906255,92243.0,92230.0,0.043369]
[1732054599071,0.216823,92241.0,92230.0,0.043369]
[1732054599292,0.108419,92235.0,92229.0,0.043369]
[1732054599502,0.108419,92235.0,92230.0,0.043369]
[1732054599709,0.10906255,92240.0,92229.0,0.043369]
[1732054599931,0.0008545,92246.0,92239.0,0.043365]
[1732054600411,0.0008545,92246.0,92234.0,0.043367]
[1732054600639,0.0008545,92246.0,92241.0,0.043364]
[1732054600870,0.0008545,92246.0,92245.0,0.043362]
[1732054601336,0.0008545,92246.0,92244.0,0.043363]
[1732054601618,0.0008545,92246.0,92240.0,0.043364]
[1732054601871,0.0008545,92246.0,92237.0,0.043366]
[1732054602082,0.0008545,92246.0,92242.0,0.043364]
[1732054602289,0.0008545,92246.0,92241.0,0.043364]
[1732054602528,0.0008545,92246.0,92245.0,0.043362]
[1732054603597,0.0008545,92246.0,92242.0,0.043364]
[1732054603807,0.0008545,92246.0,92224.0,0.043372]
[1732054604041,0.0008545,92246.0,92245.0,0.126162]
[1732054604246,0.0008545,92246.0,92245.0,0.23522455]
[1732054604452,0.0008545,92246.0,92245.0,0.28232455]
[1732054605518,0.0008545,92246.0,92245.0,0.39232455]
[1732054607109,5e-07,92246.0,92245.0,0.40432455]
[1732054608653,5e-07,92246.0,92245.0,0.50097324]
[1732054609081,5e-07,92246.0,92245.0,0.40432455]
[1732054610352,5e-07,92246.0,92245.0,0.40232455]
[1732054610578,5e-07,92246.0,92245.0,0.40432455]
[1732054610792,5e-07,92246.0,92245.0,0.40232455]
[1732054611208,5e-07,92246.0,92245.0,0.40403295]
[1732054612791,5e-07,92246.0,92245.0,0.08541964]
[1732054613046,0.50386361,92289.0,92282.0,0.043345]
[1732054613262,0.61292616,92288.0,92282.0,0.043345]
[1732054613695,0.61292616,92288.0,92287.0,0.043343]
[1732054617068,0.0786,92291.0,92290.0,0.043341]
[1732054617288,0.012,92305.0,92287.0,0.043343]
[1732054617289,0.1259,92298.0,92287.0,0.043343]
[1732054617522,0.1259,92298.0,92297.0,0.043338]
[1732054617982,0.50386361,92309.0,92297.0,0.043338]
[1732054617983,0.0781,92309.0,92297.0,0.043338]
[1732054618205,0.0781,92309.0,92308.0,0.043333]
[1732054619122,0.18716255,92309.0,92308.0,0.043333]
[1732054621193,0.18716255,92309.0,92303.0,0.043335]
[1732054621194,0.01,92307.0,92303.0,0.043335]
[1732054621436,0.01,92307.0,92306.0,0.043334]
[1732054622543,0.11906255,92307.0,92306.0,0.043334]
[1732054623234,0.11906255,92307.0,92297.0,0.043337]
[1732054623235,0.01,92304.0,92300.0,0.043336]
[1732054623471,0.10906255,92303.0,92300.0,0.043336]
[1732054623688,0.10906255,92303.0,92302.0,0.043336]
[1732054627779,0.10906255,92303.0,92296.0,0.043338]
[1732054628024,0.10906255,92300.0,92255.0,0.0774]
[1732054628269,0.10906255,92300.0,92265.0,0.043353]
[1732054628270,0.0781,92278.0,92265.0,0.043353]
[1732054628456,0.10906255,92277.0,92269.0,0.043351]
[1732054628736,0.10906255,92277.0,92275.0,0.043348]
[1732054628951,0.10906255,92277.0,92251.0,0.043359]
[1732054628952,0.10906255,92277.0,92273.0,0.043349]
[1732054629404,0.10906255,92277.0,92274.0,0.043348]
[1732054630315,0.10906255,92277.0,92273.0,0.086698]
[1732054630532,0.10906255,92277.0,92268.0,0.043351]
[1732054630775,0.10906255,92277.0,92270.0,0.04335]
[1732054630999,0.10906255,92277.0,92272.0,0.043349]
[1732054631444,0.11906255,92277.0,92252.0,0.1]
[1732054631677,0.11906255,92277.0,92235.0,0.01]
[1732054631678,0.11906255,92277.0,92269.0,0.043351]
[1732054632138,0.11906255,92277.0,92269.0,0.086702]
[1732054632566,0.11906255,92277.0,92269.0,0.043351]
[1732054633025,0.50386361,92280.0,92279.0,0.043346]
[1732054633266,0.04482465,92305.0,92304.0,0.043335]
[1732054633509,0.0008542,92309.0,92308.0,0.043333]
[1732054634437,0.0008542,92309.0,92308.0,0.032499]
[1732054635371,0.04530524,92309.0,92308.0,0.032499]
[1732054635609,0.0008542,92309.0,92308.0,0.032499]
[1732054643030,0.0008542,92309.0,92302.0,0.01]
[1732054643031,0.03577543,92337.0,92335.0,0.03249]
[1732054643270,0.03577543,92337.0,92336.0,0.03249]
[1732054643484,0.07934504,92337.0,92336.0,0.03249]
[1732054643803,0.03577543,92337.0,92336.0,0.03249]
[1732054644254,0.0012554,92339.0,92338.0,0.032489]
[1732054645337,0.11031795,92339.0,92338.0,0.032489]
[1732054645758,0.15413387,92339.0,92338.0,0.032489]
[1732054647324,0.04507132,92339.0,92338.0,0.032489]
[1732054647595,0.0012554,92339.0,92338.0,0.032489]
[1732054650432,0.0012554,92339.0,92338.0,0.02929333]
[1732054654509,0.0012554,92339.0,92334.0,0.03249]
[1732054654703,0.0012554,92339.0,92338.0,0.032489]
[1732054656087,0.0022574,92339.0,92338.0,0.032489]
[1732054657881,0.20416353,92363.0,92340.0,0.01]
[1732054658094,0.10906255,92362.0,92357.0,0.032482]
[1732054658507,0.21733255,92362.0,92356.0,0.032482]
[1732054659380,0.10906255,92362.0,92359.0,0.032481]
[1732054659684,0.10906255,92362.0,92357.0,0.032482]
[1732054659819,0.10906255,92362.0,92357.0,0.064964]
[1732054660244,0.10906255,92362.0,92358.0,0.032482]
[1732054660512,0.10906255,92362.0,92357.0,0.032482]
[1732054660731,0.12383185,92363.0,92362.0,0.03248]
[1732054660732,0.0805,92363.0,92362.0,0.03248]
[1732054660956,0.0008548,92364.0,92363.0,0.03248]
[1732054661161,0.04396268,92364.0,92363.0,0.03248]
[1732054661404,0.0008548,92364.0,92363.0,0.03248]
[1732054664119,0.0008548,92364.0,92363.0,0.04248]
[1732054667739,0.0008548,92364.0,92363.0,0.30714255]
[1732054668176,0.0008548,92364.0,92363.0,0.38394255]
[1732054669116,8e-07,92364.0,92363.0,0.429259]
[1732054669608,8e-07,92364.0,92363.0,0.37394255]
[1732054669829,8e-07,92364.0,92363.0,0.03248]
[1732054670058,8e-07,92364.0,92363.0,0.04248]
[1732054672394,8e-07,92364.0,92363.0,0.0441862]
[1732054672847,0.57070496,92388.0,92367.0,0.01]
[1732054673080,0.13206255,92387.0,92383.0,0.032473]
[1732054673331,0.0004,92399.0,92379.0,0.01]
[1732054673332,0.0008546,92396.0,92379.0,0.01]
[1732054673554,0.10906255,92395.0,92390.0,0.03247]
[1732054673786,0.01,92374.0,92368.0,0.0768]
[1732054674020,0.0471,92384.0,92338.0,0.0017066]
[1732054674021,0.108267,92364.0,92352.0,0.032484]
[1732054674262,0.108267,92364.0,92351.0,0.032484]
[1732054674263,0.21732955,92364.0,92351.0,0.032484]
[1732054674494,0.216515,92372.0,92338.0,0.0017066]
[1732054674495,0.01,92375.0,92350.0,0.01]
[1732054674733,0.10906255,92367.0,92362.0,0.03248]
[1732054674961,0.10906255,92367.0,92365.0,0.032479]
[1732054675394,0.10906255,92367.0,92366.0,0.032479]
[1732054675957,0.10906255,92367.0,92364.0,0.03248]
[1732054676375,0.10906255,92367.0,92362.0,0.03248]
[1732054676588,0.10906255,92367.0,92364.0,0.03248]
[1732054677803,0.10906255,92367.0,92350.0,0.01]
[1732054677804,0.01,92364.0,92337.0,0.032489]
[1732054678034,0.25032955,92364.0,92333.0,0.03249]
[1732054678270,0.33222955,92364.0,92315.0,0.0457]
[1732054678495,0.43222955,92364.0,92317.0,0.01]
[1732054678715,0.131296,92339.0,92315.0,0.01]
[1732054678929,0.24035855,92339.0,92320.0,0.032495]
[1732054679604,0.24035855,92339.0,92324.0,0.032494]
[1732054679790,0.71282451,92339.0,92313.0,0.032497]
[1732054680019,0.24035855,92339.0,92327.0,0.032493]
[1732054680290,0.25035855,92339.0,92325.0,0.032493]
[1732054680515,0.24035855,92339.0,92328.0,0.032492]
[1732054680767,0.25035855,92339.0,92319.0,0.032495]
[1732054680999,0.35035855,92339.0,92311.0,0.032498]
[1732054681221,0.35035855,92339.0,92317.0,0.032496]
[1732054681222,0.35235855,92339.0,92317.0,0.032496]
[1732054681668,0.35235855,92339.0,92318.0,0.032496]
[1732054682369,0.35235855,92339.0,92315.0,0.032497]
[1732054682599,0.35235855,92339.0,92316.0,0.032496]
[1732054682826,0.3966479,92339.0,92316.0,0.032496]
[1732054683277,0.3966479,92339.0,92313.0,0.032498]
[1732054683499,0.3966479,92339.0,92311.0,0.032498]
[1732054683728,0.3966479,92339.0,92316.0,0.032496]
[1732054683926,0.3966479,92339.0,92313.0,0.032498]
[1732054684137,0.3966479,92339.0,92312.0,0.032498]
[1732054684574,0.3946479,92339.0,92317.0,0.032496]
[1732054684851,0.372337,92304.0,92273.0,0.0966686]
[1732054685065,0.372337,92304.0,92270.0,0.1467105]
[1732054685066,0.023,92274.0,92270.0,0.0017076]
[1732054685297,0.023,92272.0,92270.0,0.0017076]
[1732054685508,0.13206255,92271.0,92270.0,0.0017076]
[1732054687168,0.10906255,92271.0,92270.0,0.0017076]
[1732054687836,0.023,92282.0,92270.0,0.0342206]
[1732054688050,0.1,92292.0,92270.0,0.0017076]
[1732054688277,0.023,92287.0,92270.0,0.0017076]
[1732054688497,0.023,92285.0,92270.0,0.0017076]
[1732054688783,0.01,92288.0,92272.0,0.032512]
[1732054688784,0.023,92283.0,92272.0,0.032512]
[1732054689023,0.316708,92290.0,92270.0,0.0017076]
[1732054689024,0.216576,92271.0,92270.0,0.0017076]
[1732054689229,0.42563855,92271.0,92270.0,0.0017076]
[1732054689439,0.42763855,92271.0,92270.0,0.0017076]
[1732054689866,0.46424302,92271.0,92270.0,0.0017076]
[1732054690104,0.46624302,92271.0,92270.0,0.0017076]
[1732054690577,0.5039538,92271.0,92270.0,0.0017076]
[1732054693734,0.46534933,92271.0,92270.0,0.0017076]
[1732054694633,0.50837691,92271.0,92270.0,0.0017076]
[1732054695063,0.93313209,92271.0,92270.0,0.0017076]
[1732054696917,0.96964558,92271.0,92270.0,0.0017076]
[1732054697109,0.97397958,92271.0,92270.0,0.0017076]
[1732054701300,0.01,92257.0,92251.0,0.0004]
[1732054701531,0.13206255,92256.0,92251.0,0.0004]
[1732054702952,0.04306255,92256.0,92251.0,0.0004]
[1732054703627,0.04306255,92256.0,92251.0,0.01374769]
[1732054703787,0.04306255,92256.0,92252.0,0.01334769]
[1732054704005,0.04306255,92256.0,92253.0,0.01334769]
[1732054704192,0.04306255,92256.0,92254.0,0.01334769]
[1732054704391,0.04306255,92256.0,92255.0,0.01334769]
[1732054704765,0.04306255,92256.0,92251.0,0.0004]
[1732054705813,0.04306255,92256.0,92251.0,0.01374769]
[1732054706175,0.04306255,92256.0,92252.0,0.01334769]
[1732054706302,0.04306255,92256.0,92251.0,0.0004]
[1732054706706,0.04306255,92256.0,92252.0,0.01341272]
[1732054706924,0.04306255,92256.0,92253.0,0.01341264]
[1732054707194,0.04306255,92256.0,92254.0,0.01341264]
[1732054707523,0.08788082,92256.0,92254.0,0.01341264]
[1732054707732,0.08788082,92256.0,92255.0,0.01341264]
[1732054707733,0.04306255,92256.0,92255.0,0.01341264]
[1732054708588,0.04386431,92256.0,92255.0,0.04593064]
[1732054708947,0.1,92266.0,92260.0,0.032516]
[1732054709145,0.20906255,92266.0,92261.0,0.01341264]
[1732054709367,0.20906255,92266.0,92262.0,0.01341264]
[1732054709585,0.20906255,92266.0,92263.0,0.01341264]
[1732054710007,0.20906255,92266.0,92264.0,0.01341264]
[1732054710008,0.25341043,92266.0,92264.0,0.01341264]
[1732054710240,0.25341043,92266.0,92265.0,0.01341264]
[1732054710241,0.14634788,92266.0,92265.0,0.01341264]
[1732054710450,0.28772988,92266.0,92265.0,0.01341264]
[1732054712378,0.28772988,92266.0,92252.0,0.032519]
[1732054712379,0.108388,92261.0,92252.0,0.032519]
[1732054713141,0.01,92262.0,92251.0,0.0021076]
[1732054713353,0.108389,92261.0,92251.0,0.0346266]
[1732054713782,0.01,92262.0,92251.0,0.0021076]
[1732054714008,0.108393,92257.0,92251.0,0.0021076]
[1732054714420,0.01,92262.0,92251.0,0.0021076]
[1732054714421,0.108395,92255.0,92251.0,0.0021076]
[1732054715249,0.433556,92260.0,92251.0,0.0021076]
[1732054715250,0.216781,92259.0,92251.0,0.0021076]
[1732054715451,0.108394,92256.0,92251.0,0.0021076]
[1732054716901,0.108398,92252.0,92251.0,0.0021076]
[1732054717755,0.108397,92254.0,92251.0,0.0021076]
[1732054719256,0.108398,92253.0,92251.0,0.0021076]
[1732054719456,0.108398,92252.0,92251.0,0.0021076]
[1732054719674,0.22746055,92252.0,92251.0,0.0021076]
[1732054720462,0.26114549,92252.0,92251.0,0.0021076]
[1732054720670,0.26397404,92252.0,92251.0,0.0021076]
[1732054720916,0.29766018,92252.0,92251.0,0.0021076]
[1732054721157,0.26397404,92252.0,92251.0,0.0021076]
[1732054721367,0.29766297,92252.0,92251.0,0.0021076]
[1732054722918,0.32266297,92252.0,92251.0,0.0021076]
[1732054723567,0.42266297,92252.0,92251.0,0.0021076]
[1732054724004,0.92125787,92252.0,92251.0,0.0021076]
[1732054726318,0.97075787,92252.0,92251.0,0.0021076]
[1732054727897,0.97075787,92252.0,92231.0,0.0004]
[1732054727898,0.01,92235.0,92231.0,0.0004]
[1732054728108,0.108422,92232.0,92231.0,0.0004]
[1732054728330,0.21748455,92232.0,92231.0,0.0004]